bitfinex/quotes_SOLUSD_20241126
["timestamp","ask_amount","ask_price","bid_price","bid_amount"]
[1732595008638,12.84587229,236.82,236.75,12.84587229]
[1732595009047,20.7009,236.84,236.71,4.2245]
[1732595009048,29.32447229,236.84,236.76,12.84587229]
[1732595009366,12.84587229,236.85,236.77,12.84587229]
[1732595009534,12.84587229,236.86,236.79,12.84587229]
[1732595009739,12.84587229,236.89,236.81,12.84587229]
[1732595010149,12.84587229,236.87,236.79,12.84587229]
[1732595010736,12.84587229,236.85,236.77,12.84587229]
[1732595010940,23.776884,236.83,236.76,12.84587229]
[1732595011747,23.776884,236.83,236.77,12.84587229]
[1732595012650,4.2213,236.89,236.8,20.0]
[1732595012862,23.776884,236.86,236.8,20.0]
[1732595013965,23.776884,236.86,236.8,24.2229]
[1732595014681,23.776884,236.86,236.79,12.84587229]
[1732595014846,23.776884,236.84,236.77,17.06917229]
[1732595016754,12.84587229,236.83,236.75,32.84587229]
[1732595017070,23.776884,236.82,236.75,32.84587229]
[1732595017975,23.776884,236.8,236.73,17.07007229]
[1732595021057,12.84587229,236.79,236.72,6.4283]
[1732595021265,12.84587229,236.77,236.72,10.6526]
[1732595021450,23.776884,236.76,236.72,10.6526]
[1732595022065,23.776884,236.78,236.72,10.6526]
[1732595022876,23.776884,236.78,236.73,17.06997229]
[1732595023054,23.776884,236.8,236.73,17.06997229]
[1732595025378,36.62275629,236.8,236.73,4.2241]
[1732595026161,23.776884,236.8,236.74,12.84587229]
[1732595029479,23.776884,236.78,236.73,4.2241]
[1732595032165,23.776884,236.79,236.73,17.06997229]
[1732595032678,23.776884,236.8,236.74,12.84587229]
[1732595033058,23.776884,236.8,236.73,4.2241]
[1732595033059,23.776884,236.8,236.73,17.06997229]
[1732595033258,36.62275629,236.8,236.73,4.2241]
[1732595034181,23.776884,236.8,236.73,17.06997229]
[1732595034684,23.776884,236.8,236.75,12.84587229]
[1732595034987,23.776884,236.81,236.75,12.84587229]
[1732595035163,36.62275629,236.83,236.75,12.84587229]
[1732595035890,36.62275629,236.83,236.75,17.06957229]
[1732595036269,36.62275629,236.85,236.77,12.84587229]
[1732595036470,12.84587229,236.85,236.77,12.84587229]
[1732595037983,23.776884,236.84,236.78,4.2233]
[1732595039390,12.84587229,236.87,236.79,12.84587229]
[1732595040288,12.84587229,236.87,236.72,6.4283]
[1732595040289,12.84587229,236.85,236.77,12.84587229]
[1732595040495,12.84587229,236.84,236.77,17.06937229]
[1732595041475,23.776884,236.83,236.77,17.06937229]
[1732595041803,23.776884,236.85,236.77,17.06937229]
[1732595042170,23.776884,236.85,236.79,12.84587229]
[1732595042582,23.776884,236.85,236.77,17.06937229]
[1732595042984,23.776884,236.83,236.77,17.06937229]
[1732595043492,23.776884,236.83,236.77,4.2235]
[1732595043700,23.776884,236.81,236.76,4.2236]
[1732595044470,23.776884,236.82,236.77,8.22655268]
[1732595044688,23.776884,236.84,236.77,8.22655268]
[1732595045706,23.776884,236.84,236.78,4.2233]
[1732595046384,23.776884,236.84,236.79,8.22655268]
[1732595046698,23.776884,236.86,236.79,8.22655268]
[1732595047996,23.776884,236.86,236.8,4.2229]
[1732595048298,23.776884,236.86,236.81,8.22655268]
[1732595048490,10.53549432,236.9,236.83,8.22655268]
[1732595048692,10.53549432,236.9,236.87,8.22655268]
[1732595048895,160.1373,237.04,236.89,8.22655268]
[1732595049214,12.44565268,237.02,236.93,8.22655268]
[1732595049499,8.22655268,237.04,236.95,8.22655268]
[1732595049684,8.22655268,237.04,236.97,8.22655268]
[1732595049877,8.22655268,237.04,236.97,12.44635268]
[1732595050191,8.22655268,237.0,236.92,4.2208]
[1732595050392,8.22655268,236.98,236.94,20.0]
[1732595050702,8.22655268,236.96,236.91,6.6625]
[1732595051085,23.776884,236.93,236.91,6.6625]
[1732595051596,23.776884,236.97,236.91,19.10995268]
[1732595051907,23.776884,237.01,236.94,32.44695268]
[1732595052284,36.61116591,237.01,236.94,24.2204]
[1732595052601,23.776884,236.98,236.94,20.0]
[1732595053194,23.776884,237.0,236.94,37.05468191]
[1732595053395,23.776884,237.01,236.94,24.2204]
[1732595055581,23.776884,237.01,236.95,17.05438191]
[1732595055802,23.776884,237.03,236.97,12.83428191]
[1732595056208,12.83428191,237.04,236.97,12.83428191]
[1732595056710,12.83428191,237.04,236.97,17.05408191]
[1732595057008,12.83428191,237.06,236.99,12.83428191]
[1732595057310,23.36264901,237.08,236.99,29.26598191]
[1732595058313,10.5283671,237.08,237.03,12.83428191]
[1732595058694,10.5283671,237.08,237.01,18.97218191]
[1732595059015,10.5283671,237.08,237.01,23.19118191]
[1732595059207,23.36264901,237.08,237.01,23.19118191]
[1732595059713,23.776884,237.07,237.01,18.97218191]
[1732595059915,12.83428191,237.06,237.01,6.1379]
[1732595060218,23.776884,237.05,237.01,6.1379]
[1732595061007,10.5283671,237.08,237.02,12.83428191]
[1732595061212,23.36264901,237.08,237.01,10.3569]
[1732595061418,27.58064901,237.08,237.01,6.1379]
[1732595061613,10.5283671,237.08,237.01,10.3571]
[1732595061919,12.83428191,237.07,237.01,6.1379]
[1732595062409,23.776884,237.06,237.01,6.1379]
[1732595063191,12.83428191,237.07,237.01,6.1379]
[1732595063389,10.5283671,237.08,237.02,12.83428191]
[1732595063612,10.5283671,237.08,237.04,12.83428191]
[1732595064194,10.5283671,237.08,237.06,12.83428191]
[1732595064396,10.5283671,237.08,237.07,12.83428191]
[1732595065310,12.83428191,237.16,237.08,4.2179]
[1732595065506,12.83428191,237.16,237.09,12.83428191]
[1732595066205,12.83428191,237.16,237.08,4.2179]
[1732595066425,12.83428191,237.14,237.07,12.83428191]
[1732595066922,23.776884,237.13,237.07,17.05238191]
[1732595067228,23.776884,237.13,237.07,12.83428191]
[1732595067429,23.776884,237.13,237.08,20.0]
[1732595067630,12.83428191,237.12,237.08,20.0]
[1732595070515,12.83428191,237.1,237.01,6.1379]
[1732595070731,23.776884,237.11,237.05,12.83428191]
[1732595071123,12.83428191,237.11,237.04,20.0]
[1732595071299,23.776884,237.1,237.06,20.0]
[1732595071499,12.83428191,237.11,237.06,20.0]
[1732595071500,12.83428191,237.12,237.06,20.0]
[1732595071723,23.776884,237.11,237.06,20.0]
[1732595071905,23.776884,237.11,237.06,24.2183]
[1732595072807,23.776884,237.13,237.06,24.2183]
[1732595074333,23.776884,237.11,237.06,20.0]
[1732595076834,23.776884,237.12,237.06,24.2183]
[1732595078333,23.776884,237.09,237.03,17.05288191]
[1732595078706,23.776884,237.11,237.03,17.05288191]
[1732595080307,23.776884,237.11,237.05,12.83428191]
[1732595080514,23.776884,237.13,237.05,12.83428191]
[1732595080951,17.05088191,237.16,237.08,12.83428191]
[1732595082129,17.05088191,237.16,237.08,17.05218191]
[1732595082936,12.83428191,237.16,237.08,17.05218191]
[1732595083518,23.776884,237.15,237.08,17.05218191]
[1732595084246,23.776884,237.15,237.09,20.0]
[1732595084247,23.776884,237.13,237.09,20.0]
[1732595088340,23.776884,237.13,237.08,4.2179]
[1732595088551,23.776884,237.14,237.08,4.2179]
[1732595091258,23.776884,237.16,237.09,23.39986631]
[1732595092541,23.776884,237.16,237.09,27.61746631]
[1732595094345,8.20436631,237.15,237.09,15.1955]
[1732595094549,23.776884,237.12,237.07,24.218]
[1732595094758,8.20436631,237.11,237.07,24.218]
[1732595097195,23.776884,237.12,237.07,24.218]
[1732595097382,23.776884,237.12,237.09,20.0]
[1732595098485,8.20436631,237.14,237.09,20.0]
[1732595098787,23.776884,237.14,237.09,24.2177]
[1732595099385,23.776884,237.15,237.09,24.2177]
[1732595099806,23.776884,237.15,237.09,12.42206631]
[1732595099992,23.776884,237.16,237.09,12.42206631]
[1732595101600,31.98125031,237.18,237.09,12.42206631]
[1732595101787,8.20436631,237.22,237.13,8.20436631]
[1732595102112,8.20436631,237.2,237.13,8.20436631]
[1732595102999,23.776884,237.2,237.13,8.20436631]
[1732595103199,23.776884,237.2,237.15,8.20436631]
[1732595103394,10.485149,237.32,237.1,6.6003]
[1732595103395,8.20436631,237.23,237.16,12.42066631]
[1732595104418,12.41946631,237.24,237.17,8.20436631]
[1732595104595,8.20436631,237.23,237.16,8.20436631]
[1732595104817,23.776884,237.23,237.16,28.20436631]
[1732595105707,8.20436631,237.26,237.19,8.20436631]
[1732595106418,8.20436631,237.25,237.18,8.20436631]
[1732595106917,23.776884,237.24,237.18,12.42036631]
[1732595108196,23.776884,237.26,237.18,4.216]
[1732595108421,23.776884,237.24,237.18,4.216]
[1732595108604,23.776884,237.24,237.19,8.20436631]
[1732595108924,23.776884,237.26,237.19,8.20436631]
[1732595110024,23.776884,237.26,237.19,19.02056631]
[1732595110716,31.98125031,237.26,237.19,10.8162]
[1732595110922,8.20436631,237.23,237.19,6.6003]
[1732595111123,8.20436631,237.22,237.19,6.6003]
[1732595113708,8.20436631,237.22,237.15,4.2166]
[1732595113709,23.776884,237.21,237.15,4.2166]
[1732595114845,23.776884,237.17,237.13,23.2002]
[1732595115734,8.20436631,237.14,237.08,25.5432]
[1732595116118,31.98125031,237.15,237.08,25.5432]
[1732595116719,8.20436631,237.14,237.08,25.5432]
[1732595117117,8.20436631,237.14,237.08,21.3253]
[1732595117315,31.98125031,237.13,237.08,21.3253]
[1732595117721,23.776884,237.13,237.08,21.3253]
[1732595118013,8.20436631,237.12,237.08,21.3253]
[1732595118451,23.776884,237.13,237.08,21.3253]
[1732595119520,27.993984,237.13,237.08,21.3253]
[1732595119732,23.776884,237.11,237.08,21.3253]
[1732595119919,31.98125031,237.13,237.08,21.3253]
[1732595122127,23.776884,237.13,237.08,21.3253]
[1732595124222,8.20436631,237.12,237.08,21.3253]
[1732595124541,23.776884,237.11,237.06,8.20436631]
[1732595124717,31.98125031,237.15,237.06,8.20436631]
[1732595125443,31.98125031,237.15,237.08,8.20436631]
[1732595125936,31.98125031,237.15,237.05,24.2183]
[1732595126147,8.20436631,237.11,237.07,20.0]
[1732595126443,23.776884,237.1,237.07,20.0]
[1732595127122,8.20436631,237.13,237.07,24.2181]
[1732595127320,23.776884,237.12,237.07,24.2181]
[1732595127921,20.0,237.2,237.1,8.20436631]
[1732595128121,8.20436631,237.18,237.1,8.20436631]
[1732595128744,8.20436631,237.16,237.08,8.20436631]
[1732595129527,23.776884,237.15,237.08,12.42216631]
[1732595130921,23.776884,237.15,237.1,8.20436631]
[1732595131138,23.776884,237.17,237.1,8.20436631]
[1732595131639,8.20436631,237.22,237.14,28.20436631]
[1732595132443,12.41946631,237.24,237.16,8.20436631]
[1732595133151,23.776884,237.23,237.16,8.20436631]
[1732595133349,23.776884,237.23,237.16,12.42086631]
[1732595134148,27.992184,237.23,237.16,12.42086631]
[1732595137426,23.776884,237.21,237.15,4.2167]
[1732595138125,8.20436631,237.18,237.11,22.1889]
[1732595138331,23.776884,237.15,237.11,26.4061]
[1732595138732,23.776884,237.17,237.11,26.4061]
[1732595139324,32.81746524,237.24,237.11,22.1889]
[1732595139325,31.98125031,237.15,237.11,22.1889]
[1732595139529,23.776884,237.15,237.11,26.4063]
[1732595139927,23.776884,237.15,237.11,22.1889]
[1732595140342,23.776884,237.15,237.11,26.4063]
[1732595140630,23.776884,237.16,237.11,26.4063]
[1732595141349,23.776884,237.19,237.12,8.20436631]
[1732595141556,31.98125031,237.19,237.14,20.0]
[1732595141727,31.98125031,237.19,237.11,34.61066631]
[1732595141933,23.776884,237.19,237.12,8.20436631]
[1732595142831,23.776884,237.19,237.12,12.42156631]
[1732595144132,23.776884,237.2,237.14,8.20436631]
[1732595145351,23.776884,237.2,237.15,4.2167]
[1732595145960,26.1968,237.3,237.16,8.20436631]
[1732595145961,20.0,237.27,237.16,8.20436631]
[1732595146157,8.20436631,237.22,237.15,4.2167]
[1732595147326,23.776884,237.21,237.15,4.2167]
[1732595148259,23.776884,237.21,237.16,8.20436631]
[1732595148449,23.776884,237.23,237.16,8.20436631]
[1732595148652,145.0341,237.33,237.18,8.20436631]
[1732595148954,8.20436631,237.27,237.18,8.20436631]
[1732595149975,23.776884,237.26,237.19,4.216]
[1732595150258,23.776884,237.26,237.2,8.20436631]
[1732595150434,23.776884,237.26,237.22,8.20436631]
[1732595150747,23.776884,237.28,237.22,8.20436631]
[1732595150950,15.21540963,237.32,237.22,8.20436631]
[1732595151151,8.20436631,237.31,237.22,8.20436631]
[1732595151355,19.20597594,237.32,237.25,20.0]
[1732595151552,11.00160963,237.32,237.25,28.20436631]
[1732595151851,11.00160963,237.32,237.29,12.41856631]
[1732595152050,0.485149,237.32,237.3,8.20436631]
[1732595152462,0.485149,237.32,237.29,15.9895]
[1732595154432,24.262033,237.32,237.29,20.0]
[1732595154641,32.46639931,237.32,237.29,20.0]
[1732595155045,0.485149,237.32,237.28,8.20436631]
[1732595155543,0.485149,237.32,237.29,8.20436631]
[1732595155738,0.485149,237.32,237.28,8.20436631]
[1732595156144,0.485149,237.32,237.27,28.20436631]
[1732595156541,0.485149,237.32,237.27,32.41886631]
[1732595160859,0.485149,237.32,237.29,12.41856631]
[1732595161468,0.485149,237.32,237.31,8.20436631]
[1732595162444,0.485149,237.32,237.29,18.87666631]
[1732595162759,0.485149,237.32,237.31,20.0]
[1732595162966,0.485149,237.32,237.31,24.2138]
[1732595164150,0.485149,237.32,237.29,14.66246631]
[1732595164462,0.485149,237.32,237.29,10.6723]
[1732595165562,0.485149,237.32,237.29,18.87666631]
[1732595167062,0.485149,237.32,237.31,8.20436631]
[1732595168671,0.485149,237.32,237.31,12.41816631]
[1732595169662,0.485149,237.32,237.31,24.2138]
[1732595169861,0.485149,237.32,237.29,6.4581]
[1732595170419,0.485149,237.32,237.29,20.0]
[1732595170863,8.20436631,237.3,237.24,15.9895]
[1732595171166,23.776884,237.29,237.24,4.2151]
[1732595171668,23.776884,237.29,237.21,8.20436631]
[1732595172260,23.776884,237.29,237.24,20.0]
[1732595172950,8.20436631,237.3,237.24,12.41936631]
[1732595172951,23.776884,237.3,237.24,12.41936631]
[1732595173466,31.98125031,237.31,237.24,12.41936631]
[1732595174670,24.262033,237.32,237.24,12.41936631]
[1732595175367,8.20436631,237.31,237.24,12.41936631]
[1732595175573,23.776884,237.3,237.24,12.41936631]
[1732595176370,27.990984,237.3,237.2,4.2158]
[1732595176571,8.20436631,237.27,237.2,4.2158]
[1732595176876,23.776884,237.26,237.2,4.2158]
[1732595178573,23.776884,237.26,237.18,10.6742]
[1732595178770,23.776884,237.26,237.18,18.87856631]
[1732595183375,23.776884,237.26,237.2,8.20436631]
[1732595183573,23.776884,237.26,237.2,12.42016631]
[1732595186067,23.776884,237.27,237.22,8.20436631]
[1732595186466,0.485149,237.32,237.24,8.20436631]
[1732595188054,24.262033,237.32,237.24,12.41926631]
[1732595188865,8.20436631,237.31,237.24,12.41926631]
[1732595189170,23.776884,237.3,237.24,12.41926631]
[1732595189588,24.262033,237.32,237.24,12.41926631]
[1732595193461,23.776884,237.3,237.24,12.41926631]
[1732595194785,24.262033,237.32,237.24,12.41926631]
[1732595198083,23.776884,237.24,237.18,6.4581]
[1732595198273,23.776884,237.24,237.18,10.6742]
[1732595198485,23.776884,237.22,237.18,10.6742]
[1732595198785,23.776884,237.22,237.17,19.5526]
[1732595199386,31.98125031,237.22,237.17,19.5526]
[1732595199876,23.776884,237.23,237.17,19.5526]
[1732595201666,8.20436631,237.24,237.17,19.5526]
[1732595201868,23.776884,237.23,237.17,27.75696631]
[1732595203399,23.776884,237.25,237.2,4.2158]
[1732595203773,23.776884,237.25,237.19,8.20436631]
[1732595204400,23.776884,237.25,237.19,12.42026631]
[1732595206409,4.698949,237.32,237.21,8.20436631]
[1732595206578,8.20436631,237.31,237.23,8.20436631]
[1732595207799,8.20436631,237.31,237.24,4.2151]
[1732595207999,23.776884,237.3,237.24,4.2151]
[1732595215992,8.20436631,237.27,237.24,20.0]
[1732595216514,23.776884,237.26,237.21,10.4133]
[1732595216685,23.776884,237.26,237.21,6.1977]
[1732595216884,23.776884,237.26,237.21,10.4132]
[1732595217712,23.776884,237.26,237.2,4.2158]
[1732595219714,23.776884,237.28,237.21,8.20436631]
[1732595221113,23.776884,237.28,237.21,12.41996631]
[1732595222797,23.776884,237.26,237.19,8.20436631]
[1732595223317,23.776884,237.26,237.19,12.42026631]
[1732595225618,0.485149,237.32,237.22,20.0]
[1732595225820,0.485149,237.32,237.24,8.20436631]
[1732595225996,12.90321531,237.32,237.24,8.20436631]
[1732595226323,8.20436631,237.3,237.22,8.20436631]
[1732595226523,12.90321531,237.32,237.22,8.20436631]
[1732595226722,8.68951531,237.32,237.24,8.20436631]
[1732595227119,8.68951531,237.32,237.25,4.2149]
[1732595229003,23.776884,237.31,237.25,4.2149]
[1732595229921,8.68951531,237.32,237.26,8.20436631]
[1732595229922,0.485149,237.32,237.26,8.20436631]
[1732595231735,8.68951531,237.32,237.26,4.2146]
[1732595232033,23.776884,237.31,237.26,4.2146]
[1732595232221,8.20436631,237.3,237.25,20.0]
[1732595232604,23.776884,237.29,237.25,20.0]
[1732595234033,23.776884,237.31,237.24,12.41936631]
[1732595239524,23.776884,237.31,237.24,8.20436631]
[1732595239707,23.776884,237.29,237.22,8.20436631]
[1732595240729,23.776884,237.29,237.24,8.20436631]
[1732595240937,23.776884,237.31,237.24,8.20436631]
[1732595241430,23.776884,237.31,237.24,12.41926631]
[1732595241840,8.20436631,237.3,237.22,12.41966631]
[1732595242041,23.776884,237.29,237.23,20.0]
[1732595243137,23.776884,237.29,237.23,24.2152]
[1732595244327,23.776884,237.29,237.23,4.2152]
[1732595249842,23.776884,237.27,237.23,20.0]
[1732595250521,23.776884,237.27,237.22,4.2154]
[1732595251136,23.776884,237.28,237.22,4.2154]
[1732595253724,23.776884,237.28,237.21,8.20436631]
[1732595253725,23.776884,237.26,237.21,4.2156]
[1732595256025,23.776884,237.26,237.23,4.2153]
[1732595256445,23.776884,237.26,237.23,12.41966631]
[1732595256743,23.776884,237.31,237.25,8.20436631]
[1732595257153,24.262033,237.32,237.25,8.20436631]
[1732595257737,8.68951531,237.32,237.25,8.20436631]
[1732595257935,23.776884,237.31,237.25,8.20436631]
[1732595258130,23.776884,237.31,237.25,4.2148]
[1732595258449,8.20436631,237.31,237.25,4.2148]
[1732595258628,8.20436631,237.3,237.25,4.2148]
[1732595259143,8.20436631,237.31,237.25,4.2148]
[1732595259546,8.20436631,237.29,237.25,4.2148]
[1732595259766,23.776884,237.28,237.21,8.20436631]
[1732595259952,8.20436631,237.26,237.22,4.2154]
[1732595260134,8.20436631,237.26,237.22,24.2154]
[1732595260469,23.776884,237.25,237.22,20.0]
[1732595261042,8.20436631,237.27,237.22,20.0]
[1732595261043,23.776884,237.26,237.22,20.0]
[1732595262625,31.98125031,237.26,237.18,4.2162]
[1732595262825,31.98125031,237.26,237.18,12.42056631]
[1732595264655,31.98125031,237.26,237.19,8.20436631]
[1732595264846,31.98125031,237.26,237.2,4.2158]
[1732595265045,23.776884,237.26,237.2,4.2158]
[1732595265255,31.98125031,237.27,237.2,4.2158]
[1732595266442,8.20436631,237.26,237.2,4.2158]
[1732595266754,23.776884,237.25,237.2,4.2158]
[1732595268030,23.776884,237.25,237.2,28.20436631]
[1732595268232,23.776884,237.26,237.2,8.20436631]
[1732595268951,31.98125031,237.26,237.2,20.0]
[1732595269255,31.98125031,237.26,237.19,8.20436631]
[1732595269653,31.98125031,237.26,237.2,4.2158]
[1732595271441,0.12549,237.27,237.21,8.20436631]
[1732595271938,8.20436631,237.25,237.2,24.2158]
[1732595272141,8.32985631,237.27,237.2,32.42016631]
[1732595272642,23.776884,237.26,237.2,32.42016631]
[1732595273249,23.902374,237.27,237.22,8.20436631]
[1732595273656,23.902374,237.27,237.21,4.2156]
[1732595276564,23.776884,237.28,237.21,12.41996631]
[1732595278552,23.776884,237.26,237.21,4.2156]
[1732595279343,23.776884,237.24,237.2,20.0]
[1732595279939,23.776884,237.26,237.2,24.2157]
[1732595281543,23.776884,237.26,237.21,8.20436631]
[1732595281739,8.20436631,237.31,237.25,8.20436631]
[1732595281954,0.485149,237.32,237.25,8.20436631]
[1732595282462,8.68951531,237.32,237.25,8.20436631]
[1732595283452,24.262033,237.32,237.26,8.20436631]
[1732595283645,32.46639931,237.32,237.25,12.41906631]
[1732595283968,23.776884,237.29,237.23,28.20436631]
[1732595284269,23.776884,237.29,237.23,32.41946631]
[1732595289178,8.32985631,237.28,237.21,12.41986631]
[1732595289366,23.776884,237.27,237.21,12.41986631]
[1732595289855,23.902374,237.28,237.21,12.41986631]
[1732595290056,23.902374,237.28,237.22,8.20436631]
[1732595290259,23.902374,237.28,237.22,12.41976631]
[1732595291658,23.776884,237.28,237.22,12.41976631]
[1732595291860,23.776884,237.29,237.22,12.41976631]
[1732595292259,23.776884,237.29,237.24,8.20436631]
[1732595292461,8.68951531,237.32,237.24,8.20436631]
[1732595292650,0.485149,237.32,237.26,8.20436631]
[1732595293842,24.262033,237.32,237.26,8.20436631]
[1732595294251,0.485149,237.32,237.26,12.41896631]
[1732595296265,24.262033,237.32,237.26,12.41896631]
[1732595297166,24.262033,237.32,237.24,8.20436631]
[1732595298454,24.262033,237.32,237.26,8.20436631]
[1732595300182,24.262033,237.32,237.26,12.41906631]
[1732595302681,0.485149,237.32,237.26,12.41906631]
[1732595303582,0.485149,237.32,237.28,8.20436631]
[1732595303780,0.485149,237.32,237.3,8.20436631]
[1732595304489,0.485149,237.32,237.31,8.20436631]
[1732595305159,0.485149,237.32,237.31,18.60606631]
[1732595309586,0.485149,237.32,237.31,10.4017]
[1732595309962,0.485149,237.32,237.31,4.2138]
[1732595310383,0.485149,237.32,237.28,8.20436631]
[1732595310772,0.485149,237.32,237.29,4.2142]
[1732595311058,0.485149,237.32,237.27,4.2145]
[1732595311059,24.262033,237.32,237.27,4.2145]
[1732595311374,32.46639931,237.32,237.26,23.1]
[1732595312029,32.46639931,237.32,237.26,27.3147]
[1732595312587,23.776884,237.3,237.26,4.2147]
[1732595312794,23.776884,237.3,237.24,12.41936631]
[1732595313163,23.776884,237.3,237.24,4.215]
[1732595313363,31.98125031,237.3,237.24,4.215]
[1732595313664,8.20436631,237.29,237.24,4.215]
[1732595313869,8.20436631,237.27,237.21,4.2156]
[1732595314090,23.776884,237.26,237.21,4.2156]
[1732595314789,31.98125031,237.26,237.21,4.2156]
[1732595315364,31.98125031,237.26,237.19,12.42026631]
[1732595315593,8.20436631,237.25,237.19,4.2159]
[1732595316087,23.776884,237.24,237.19,4.2159]
[1732595316589,31.98125031,237.26,237.19,12.42026631]
[1732595316801,23.776884,237.26,237.2,8.20436631]
[1732595317167,31.98125031,237.26,237.19,12.42026631]
[1732595318793,0.485149,237.32,237.25,8.20436631]
[1732595318965,0.485149,237.32,237.27,8.20436631]
[1732595320765,0.485149,237.32,237.27,12.41886631]
[1732595322296,0.485149,237.32,237.29,8.20436631]
[1732595325183,0.485149,237.32,237.27,8.20436631]
[1732595325374,0.485149,237.32,237.25,12.41916631]
[1732595325873,4.698849,237.32,237.25,12.41916631]
[1732595326090,23.776884,237.31,237.25,12.41916631]
[1732595326597,24.262033,237.32,237.25,12.41916631]
[1732595327496,24.262033,237.32,237.27,8.20436631]
[1732595327708,24.262033,237.32,237.3,8.20436631]
[1732595328050,0.485149,237.32,237.31,8.20436631]
[1732595328208,0.485149,237.32,237.27,4.2144]
[1732595328209,0.485149,237.32,237.27,24.2144]
[1732595328510,0.485149,237.32,237.31,8.20436631]
[1732595329974,0.485149,237.32,237.31,12.41816631]
[1732595330471,0.485149,237.32,237.31,12.54365631]
[1732595330884,28.36136631,237.47,237.34,20.0]
[1732595331069,28.36136631,237.47,237.4,8.20436631]
[1732595332521,20.157,237.47,237.4,8.20436631]
[1732595332745,28.36136631,237.47,237.4,8.20436631]
[1732595333026,23.776884,237.46,237.4,8.20436631]
[1732595333212,23.776884,237.46,237.38,12.41686631]
[1732595333213,31.98125031,237.46,237.38,12.41686631]
[1732595333399,8.20436631,237.44,237.38,4.2125]
[1732595333704,23.776884,237.43,237.38,4.2125]
[1732595334007,23.776884,237.44,237.38,12.41686631]
[1732595334995,23.776884,237.44,237.36,8.20436631]
[1732595336382,23.776884,237.44,237.37,4.2128]
[1732595337609,31.98125031,237.44,237.37,8.20436631]
[1732595337783,23.776884,237.44,237.38,8.20436631]
[1732595340327,8.20436631,237.5,237.42,8.20436631]
[1732595341036,8.20436631,237.48,237.4,8.20436631]
[1732595341207,8.20436631,237.46,237.38,12.41696631]
[1732595341624,23.776884,237.45,237.38,12.41696631]
[1732595341832,23.776884,237.45,237.38,8.20436631]
[1732595342534,23.776884,237.45,237.38,12.41696631]
[1732595348633,8.20436631,237.43,237.36,4.2128]
[1732595348856,23.776884,237.4,237.34,30.2766]
[1732595350136,32.10674031,237.42,237.35,8.20436631]
[1732595350513,23.776884,237.4,237.34,38.48096631]
[1732595350713,32.10674031,237.42,237.34,38.48096631]
[1732595350922,23.776884,237.4,237.34,30.2766]
[1732595351325,8.20436631,237.37,237.28,21.5452]
[1732595351541,23.776884,237.36,237.29,12.41856631]
[1732595351839,31.98125031,237.36,237.29,12.41856631]
[1732595352044,23.776884,237.34,237.29,4.2142]
[1732595352213,23.776884,237.34,237.28,21.5452]
[1732595352417,23.776884,237.31,237.23,4.2153]
[1732595352632,23.776884,237.31,237.24,8.20436631]
[1732595353023,23.776884,237.31,237.26,4.2147]
[1732595353216,23.776884,237.31,237.26,12.41906631]
[1732595353414,23.776884,237.32,237.27,8.20436631]
[1732595353722,23.776884,237.34,237.26,4.2147]
[1732595353921,23.776884,237.34,237.28,8.20436631]
[1732595354133,23.776884,237.35,237.28,8.20436631]
[1732595354711,23.776884,237.35,237.29,8.20436631]
[1732595355243,23.776884,237.35,237.29,12.41856631]
[1732595359142,8.20436631,237.36,237.29,12.41856631]
[1732595360346,23.902374,237.36,237.29,12.41856631]
[1732595360553,8.20436631,237.36,237.29,12.41856631]
[1732595360925,23.776884,237.38,237.32,8.20436631]
[1732595361856,8.20436631,237.41,237.33,8.20436631]
[1732595362029,4.2118,237.43,237.34,8.20436631]
[1732595362362,8.20436631,237.44,237.37,8.20436631]
[1732595362825,8.20436631,237.43,237.37,4.2128]
[1732595363032,8.20436631,237.42,237.36,4.2129]
[1732595364133,8.20436631,237.42,237.35,12.41746631]
[1732595364334,32.10674031,237.43,237.35,12.41746631]
[1732595365450,8.20436631,237.42,237.35,4.2131]
[1732595366557,8.20436631,237.42,237.35,24.2131]
[1732595366759,8.20436631,237.42,237.35,4.2131]
[1732595368353,23.902374,237.43,237.35,4.2131]
[1732595368659,32.10674031,237.43,237.35,4.2131]
[1732595369137,32.10674031,237.43,237.36,8.20436631]
[1732595369844,32.10674031,237.43,237.34,20.0]
[1732595370057,32.10674031,237.43,237.35,12.41746631]